Cogmind - Beta 12 @@@ ROGUE MODE // 2023.10.31 @ 13:11:37 Player: Shin Result: Destroyed by Y-54 Guardian with Gatling Laser Performance ------------- Evolutions (4) 2000 Regions Visited (11) 2200 Robots Destroyed (130) 650 Value Destroyed (6088) 6088 Prototype IDs (29) 580 Alien Tech Used (0) 0 Bonus (3046) 3046 TOTAL SCORE: 14564 Bonus ------- High Alert Combat Kills 436 Follower Combat Kills 926 Entered Garrisons 400 Used RIF Installer 1000 Aligned with FarCom 300 Friendly Fire -16 Cogmind --------- Core Integrity 0/850 Matter 228/300 Energy 16/100 System Corruption 0% Temperature Cool (18) Movement Walking (260) Ox2 Location -6/Garrison Parts ------- > --- POWER (1) -------- (None) > --- PROPULSION (4) --- Carbon-fiber Leg Carbon-fiber Leg > --- UTILITY (8) ------ Advanced Heat Sink Huge Storage Unit Improved Target Analyzer Core Analyzer Relay Coupler [Duelist] (1) > --- WEAPON (2) ------- Flak Gun Longsword +1 > --- INVENTORY (25) --- Carbon-fiber Leg Carbon-fiber Leg Advanced Heat Sink Advanced ECM Suite Layered Medium Armor Plating Authchip [R/Combat] Authchip [R/Combat] Relay Coupler [Brawler] (37) Relay Coupler [Sentry] (25) Relay Coupler [Sentry] (32) Relay Coupler [Demolisher] (24) Relay Coupler [Specialist] (28) Relay Coupler [Hunter] (23) Relay Coupler [Heavy] (17) System Restoration Module System Restoration Module High-powered Tractor Beam Splice Drone Bay (6/6) Heavy Laser Flak Gun Magnetic Acceleration Cannon Improved Remote Datajack Peak State ------------ > --- POWER ------------ Light Angular Momentum Engine > --- PROPULSION ------- Light Treads Light Treads Armored Huge Wheel > --- UTILITY ---------- Advanced Heat Sink Advanced Heat Sink Advanced Heat Sink Advanced Heat Sink Huge Storage Unit Improved Target Analyzer Core Analyzer Splice Drone Bay > --- WEAPON ----------- Gauss Rifle Longsword +1 > --- INVENTORY -------- Carbon-fiber Leg Carbon-fiber Leg Carbon-fiber Leg Carbon-fiber Leg Flexi-carbon Leg Advanced Heat Sink Advanced Heat Sink Advanced ECM Suite Authchip [R/Combat] Authchip [R/Combat] Relay Coupler [Brawler] Relay Coupler [Duelist] Relay Coupler [Sentry] Relay Coupler [Demolisher] Relay Coupler [Specialist] Relay Coupler [Heavy] Relay Coupler [Behemoth] System Restoration Module System Restoration Module High-powered Tractor Beam Heavy Laser Heavy Laser Flak Gun Rocket Array Improved Remote Datajack [Rating: 74] Favorites ----------- Power Light Nuclear Core Engine Light Angular Momentum Engine Power Core Light Nuclear Core Propulsion Carbon-fiber Leg Treads Light Treads Leg Carbon-fiber Leg Wheel Armored Huge Wheel Utility Huge Storage Unit Device Heat Sink Storage Huge Storage Unit Processor Targeting Computer Hackware Relay Coupler [Behemoth] Protection Layered Light Armor Plating Weapon Beam Cannon Energy Gun Small Laser Energy Cannon Beam Cannon Ballistic Gun Gauss Rifle Ballistic Cannon Assault Cannon Launcher Advanced EMP Blaster Special Weapon Remote Datajack Slashing Weapon Longsword +1 Special Melee Weapon Datajack Build | -11 -10 -10 -10 -9 -8 -8 -8 -7 -7 -6 -6 ------- Run | Jun Mat Min Exi Min Mat Gar Mat Fac Sto Fac Gar Slots Evolved 8 | . . . . . 4 . . 2 . 2 . Power . | . . . . . . . . . . . . Propulsion 2 | . . . . . 2 . . . . . . Utility 6 | . . . . . 2 . . 2 . 2 . Weapon . | . . . . . . . . . . . . Parts Attached 185 | . 16 6 . 4 21 15 28 10 24 9 52 Power 13 | . 3 2 . . 1 1 2 . 1 1 2 Engine 9 | . 3 1 . . . . 1 . 1 1 2 Core 4 | . . 1 . . 1 1 1 . . . . Reactor . | . . . . . . . . . . . . Propulsion 41 | . 5 3 . 1 8 4 8 . 1 . 11 Treads 13 | . 2 2 . 1 . . 4 . . . 4 Leg 20 | . . . . . 8 4 2 . . . 6 Wheel 8 | . 3 1 . . . . 2 . 1 . 1 Hover . | . . . . . . . . . . . . Flight . | . . . . . . . . . . . . Utility 59 | . 4 1 . . 8 6 6 3 11 2 18 Device 26 | . 2 1 . . 1 2 2 2 3 1 12 Storage 3 | . 2 . . . . 1 . . . . . Processor 5 | . . . . . 2 . 1 . . . 2 Hackware 9 | . . . . . . . 1 . 5 . 3 Protection 16 | . . . . . 5 3 2 1 3 1 1 Artifact . | . . . . . . . . . . . . Weapon 72 | . 4 . . 3 4 4 12 7 11 6 21 Energy Gun 5 | . 2 . . . 2 . . . . . 1 Energy Cannon 9 | . 2 . . 1 . . 2 2 . . 2 Ballistic Gun 20 | . . . . 1 1 1 2 2 5 2 6 Ballistic Cannon 6 | . . . . . 1 1 4 . . . . Launcher 9 | . . . . . . . 1 1 . 2 5 Special Weapon 4 | . . . . . . . . 1 1 . 2 Impact Weapon . | . . . . . . . . . . . . Slashing Weapon 18 | . . . . 1 . 1 3 1 5 2 5 Piercing Weapon . | . . . . . . . . . . . . Special Melee Weapon 1 | . . . . . . 1 . . . . . Unidentified Prototypes 2 | . . . . . . . . . . 2 . Parts Lost 46 | . 6 . . . 10 . 2 . 2 . 26 Power 5 | . 2 . . . . . 1 . . . 2 Propulsion 13 | . 2 . . . 3 . . . 1 . 7 Utility 18 | . . . . . 5 . . . 1 . 12 Weapon 10 | . 2 . . . 2 . 1 . . . 5 Highest Loss Streak 13 | . 3 . . . 8 . 2 . 1 . 13 To Critical Strikes . | . . . . . . . . . . . . Average Slot Usage (%) 91 | . 98 88 71 100 98 99 93 83 80 85 87 Engine 2 | . 13 1 . . . . . 7 6 6 4 Core 7 | . . 12 14 14 9 9 8 . . . . Treads 7 | . 13 14 14 14 . . 10 . . . 5 Leg 10 | . 1 . . . 35 36 13 . . . 10 Wheel 8 | . 13 14 14 14 . . 5 15 15 13 4 Device 11 | . 13 14 14 14 9 9 1 14 3 12 20 Storage 10 | . 14 14 14 14 9 9 9 7 7 6 6 Processor 4 | . . . . . 8 9 9 7 4 . 7 Hackware 4 | . . . . . . . 8 7 18 20 8 Protection 4 | . . . . . 9 8 7 7 6 12 3 Energy Cannon 6 | . 20 16 . 14 3 . 2 6 . . 2 Ballistic Gun 4 | . 2 . . 14 7 1 6 6 3 6 4 Ballistic Cannon 1 | . . . . . 2 1 8 . . . . Slashing Weapon 1 | . . . . . . 7 . . 3 4 4 Naked Turns . | . . . . . . . . . . . . Heaviest Build 122 | 14 92 92 86 90 96 98 103 108 107 122 120 Greatest Support 80 | 20 40 20 20 23 52 55 80 56 56 56 56 Greatest Overweight (x) 29 | . 5 8 4 8 3 1 4 1 3 2 29 Average Overweight (x) 2 | . 3 5 4 3 1 1 1 1 1 1 2 Largest Inventory Capacity 25 | . 25 25 25 25 25 25 25 25 25 25 25 Average Capacity 24 | . 20 25 25 25 25 25 25 25 25 25 25 Most Carried 25 | . 23 25 25 25 25 25 25 25 25 25 25 Average Carried 23 | . 15 24 24 24 23 24 24 24 24 24 23 Final Capacity 25 | 8 25 25 25 25 25 25 25 25 25 25 25 Final Carried 25 | 6 23 25 25 25 25 25 25 25 25 25 22 Class Distribution -------------------- 47% | Mutant 36% | Bothacker-Mutant 12% | Scavenger-Mutant 3% | Commander-Mutant Dominant Class ---------------- Mutant | -10/Materials Mutant | -10/Mines Mutant | -10/Exiles Mutant | -9/Mines Scavenger-Mutant | -8/Materials Scavenger-Mutant | -8/Garrison Bothacker-Mutant | -8/Materials Bothacker-Mutant | -7/Factory Bothacker-Mutant | -7/Storage Bothacker-Mutant | -6/Factory Bothacker-Mutant | -6/Garrison Resources | -11 -10 -10 -10 -9 -8 -8 -8 -7 -7 -6 -6 ----------- Run | Jun Mat Min Exi Min Mat Gar Mat Fac Sto Fac Gar Matter Collected 3025 | 193 241 60 . 80 279 90 863 57 400 181 581 Remotely . | . . . . . . . . . . . . Salvage Created 4991 | . 755 230 . . 1060 163 992 105 370 216 1100 Parts 248 | . 47 12 . . 40 8 62 17 12 8 42 Haulers Intercepted 5 | . 1 . . . . . 4 . . . . Recyclers Shooed 4 | . . . . . 3 . 1 . . . . Parts Field Recycled . | . . . . . . . . . . . . Retrieved Matter . | . . . . . . . . . . . . Parts Self-Destructed . | . . . . . . . . . . . . Prevented . | . . . . . . . . . . . . Kills | -11 -10 -10 -10 -9 -8 -8 -8 -7 -7 -6 -6 ------- Run | Jun Mat Min Exi Min Mat Gar Mat Fac Sto Fac Gar Combat Hostiles Destroyed 96 | . 16 9 . . 14 . 16 5 2 4 30 Melee 11 | . . . . . . . 2 . 1 . 8 Guns 23 | . 7 . . . 8 . 2 . 1 2 3 Cannons 36 | . 9 9 . . 5 . 9 1 . . 3 AOE 24 | . . . . . . . 3 4 . 1 16 Classes Destroyed 14 | . 5 . . . 4 . 3 . 1 . 1 Worker 10 | . 4 . . . 2 . 4 . . . . Builder 3 | . . . . . . . 2 1 . . . Hauler 5 | . 1 . . . . . 4 . . . . Recycler 9 | . . . . . 3 . 3 . 3 . . Operator 1 | . . . . . . . 1 . . . . Watcher 6 | . 2 . . . 2 . 2 . . . . Swarmer 26 | . 3 6 . . . . 4 4 . . 9 Saboteur 1 | . . . . . . . . . . . 1 Grunt 49 | . 13 3 . . 11 . 8 . . 1 13 Duelist 3 | . . . . . 1 . . . . . 2 Sentry 8 | . . . . . 1 . 2 . 1 . 4 Specialist 2 | . . . . . . . 2 . . . . Hunter 4 | . . . . . 1 . . 1 . 2 . Programmer 3 | . . . . . . . . . 1 1 1 Best Kill Streak 9 | . 4 3 . . 4 . 6 5 3 3 9 Combat Bots Only 9 | . 2 3 . . 3 . 3 4 1 3 9 Max Kills in Single Turn 6 | . 1 1 . . 1 . 3 2 1 1 6 Gunslinging . | . . . . . . . . . . . . Exploded 6 | . . . . . . . 1 2 . 1 6 Melee 1 | . . . . . . . 1 . 1 . 1 Uniques/NPCs Destroyed . | . . . . . . . . . . . . Combat | -11 -10 -10 -10 -9 -8 -8 -8 -7 -7 -6 -6 -------- Run | Jun Mat Min Exi Min Mat Gar Mat Fac Sto Fac Gar Damage Taken 8524 | . 684 314 . 23 1426 . 1403 259 407 400 3608 Core 1475 | . 84 85 . 12 242 . 128 56 18 70 780 Absorbed by Shields 142 | . . . . . . . . . . . 142 Redirected to Shielding 53 | . . . . . 53 . . . . . . Regen/Repaired (Parts) 56 | . . . . . . . . . 56 . . Core Remaining (%) 62 | 100 . . . 27 . . 32 . 89 . . Volleys Fired 368 | . 65 24 . . 91 5 74 38 14 12 45 Largest 2 | . 2 2 . . 2 1 2 2 2 2 2 Hottest 120 | . 120 120 . . 96 44 109 109 56 56 93 Shots Fired 613 | . 116 49 . . 180 5 119 47 15 19 63 Gun 283 | . 68 . . . 126 . 35 10 8 14 22 Cannon 295 | . 48 49 . . 54 5 74 34 . . 31 Launcher 25 | . . . . . . . 10 3 . 5 7 Special 10 | . . . . . . . . . 7 . 3 Kinetic 250 | . 26 . . . 74 5 90 11 8 14 22 Thermal 327 | . 89 49 . . 106 . 19 33 . . 31 Explosive 19 | . . . . . . . 10 3 . . 6 Electromagnetic 7 | . 1 . . . . . . . . 5 1 Robot Hit Streak 16 | . 11 5 . . 14 . 8 4 3 5 16 Robot Miss Streak 7 | . 5 4 . . 7 . 4 4 3 4 4 Penetration Max 1 | . . . . . . . . . 1 1 . Secondary Targets 1 | . . . . . 1 . . . . . . Max Gunslinging Chain 1 | . . . . . 1 . . . . . . Shots Hit Robots 423 | . 78 21 . . 121 15 77 11 17 11 72 Core Hits 260 | . 31 9 . . 50 4 44 14 4 10 94 Critical Kills 3 | . . . . . 2 . 1 . . . . Critical Parts Destroyed 1 | . . . . . . . . . . . 1 Critical Strikes 12 | . . . . . 2 . 2 . 1 . 7 Meltdown 1 | . . . . . 1 . . . . . . Destroy 3 | . . . . . 1 . 1 . . . 1 Blast 1 | . . . . . . . 1 . . . . Sever 7 | . . . . . . . . . 1 . 6 Melee Attacks 106 | . . . . . . 26 12 1 18 14 35 Impact . | . . . . . . . . . . . . Slashing 97 | . . . . . . 17 12 1 18 14 35 Piercing . | . . . . . . . . . . . . Sneak Attacks 14 | . . . . . . 9 . . 5 . . Combat Hostiles 5 | . . . . . . 5 . . . . . Follow-up Attacks . | . . . . . . . . . . . . Damage Inflicted 11596 | . 1079 351 . 1 1650 621 2302 522 670 422 3978 Guns 2681 | . 624 . . . 905 . 386 85 90 222 369 Cannons 3455 | . 455 351 . . 708 . 1195 132 . . 614 Explosions 2964 | . . . . . . . 598 305 . 200 1861 Melee 2458 | . . . . . . 621 123 . 580 . 1134 Ramming 38 | . . . . 1 37 . . . . . . Kinetic 2873 | . 249 . . . 474 . 1359 110 90 222 369 Thermal 3248 | . 815 351 . . 1139 . 222 107 . . 614 Explosive 2655 | . . . . . . . 598 305 . . 1752 Electromagnetic 324 | . 15 . . . . . . . . 200 109 Impact . | . . . . . . . . . . . . Slashing 2458 | . . . . . . 621 123 . 580 . 1134 Piercing . | . . . . . . . . . . . . Highest Corruption 2 | . 2 2 2 2 . . . . 1 . 1 Average Corruption 1 | . 2 2 2 2 . . . . 1 . 1 Corruption Purged 3 | . . . . . . . . . 2 . 1 Corruption Blocked . | . . . . . . . . . . . . Effects 80 | . 12 29 16 23 . . . . . . . Message Errors 18 | . 2 5 3 8 . . . . . . . Matter Fused 10 | . 4 2 2 2 . . . . . . . Heat Flow Errors 13 | . 1 6 4 2 . . . . . . . Energy Discharges 10 | . 1 2 4 3 . . . . . . . Parts Fused 3 | . 1 2 . . . . . . . . . Data Loss (minor) 14 | . 1 5 2 6 . . . . . . . Data Loss (major) 6 | . . 3 1 2 . . . . . . . Misfires 6 | . 2 4 . . . . . . . . . Overload Shots . | . . . . . . . . . . . . Overflow Damage 253 | . . 20 . . 1 35 16 . 153 3 25 Projectiles 33 | . . 20 . . 1 . 12 . . . . Explosions 15 | . . . . . . . 4 . . 3 8 Melee 205 | . . . . . . 35 . . 153 . 17 Knockbacks 10 | . . . . . 1 . 8 1 . . . Impact . | . . . . . . . . . . . . Kinetic 9 | . . . . . 1 . 7 1 . . . Secondary 1 | . . . . . . . 1 . . . . Self-Inflicted Damage 242 | . . . . . . . . . . . 242 Shots 9 | . . . . . . . . . . . 9 Rammed 1 | . . . . 1 . . . . . . . Targets Rammed 3 | . . . . 1 2 . . . . . . Kicked 2 | . . . . . 2 . . . . . . Crushed . | . . . . . . . . . . . . Highest Temperature 268 | . 183 268 265 248 101 . 202 16 4 7 236 Average Temperature 58 | . 61 73 114 113 39 . 49 7 4 5 106 Received Heat Transfer 2831 | . 363 42 . 12 675 . 522 . 66 9 1142 Effects 3 | . . . . . . . . . . . 3 Interference 3 | . . . . . . . . . . . 3 Siege Activations . | . . . . . . . . . . . . Robots Corrupted 1 | . . . . . . . . . . 1 . Combat Hostiles 1 | . . . . . . . . . . 1 . Parts Fried 3 | . . . . . . . . . . 3 . Impact Corruptions . | . . . . . . . . . . . . Robots Melted 1 | . . . . . 1 . . . . . . Combat Hostiles 1 | . . . . . 1 . . . . . . Parts Melted 8 | . 4 1 . . 3 . . . . . . Heat Transferred 6154 | . 1787 740 . . 2560 . 296 148 . . 623 Parts Sabotaged 3 | . . . . . . . . . . . 3 Parts Stolen . | . . . . . . . . . . . . Parts Stripped . | . . . . . . . . . . . . Power Chain Reactions . | . . . . . . . . . . . . Missiles Intercepted . | . . . . . . . . . . . . Alert | -11 -10 -10 -10 -9 -8 -8 -8 -7 -7 -6 -6 ------- Run | Jun Mat Min Exi Min Mat Gar Mat Fac Sto Fac Gar Peak Influence 1403 | . 168 221 . 81 179 1403 774 403 353 121 975 Initial 683 | . . 1 . . 2 11 683 352 143 42 . Average 259 | . 61 36 . 29 55 585 581 351 163 40 396 Maximum Alert Level 4 | . . 1 . . . 4 3 2 1 . 3 Low Security (%) 60 | . 100 92 . 100 100 30 . . 67 100 33 Level 1 10 | . . 7 . . . 17 3 53 32 . 19 Level 2 19 | . . . . . . 12 87 46 . . 20 Level 3 7 | . . . . . . 25 8 . . . 26 Level 4 1 | . . . . . . 14 . . . . . Level 5 . | . . . . . . . . . . . . High Security . | . . . . . . . . . . . . Max Security . | . . . . . . . . . . . . Squads Dispatched 20 | . 4 . . . 3 . 6 2 2 3 . Investigation 8 | . 2 . . . 1 . 2 1 . 2 . Extermination 2 | . . . . . . . . . 1 1 . Reinforcement 8 | . 2 . . . . . 4 1 1 . . Assault . | . . . . . . . . . . . . Garrison 2 | . . . . . 2 . . . . . . Intercept . | . . . . . . . . . . . . Searches Triggered . | . . . . . . . . . . . . Construction Impeded . | . . . . . . . . . . . . Haulers Reinforced 1 | . . . . . . . . . 1 . . Active Scanning Responses . | . . . . . . . . . . . . Cargo Convoy Interrupts . | . . . . . . . . . . . . Stealth | -11 -10 -10 -10 -9 -8 -8 -8 -7 -7 -6 -6 --------- Run | Jun Mat Min Exi Min Mat Gar Mat Fac Sto Fac Gar Distress Signals 9 | . 1 . . . 4 . 4 . . . . Communications Jammed . | . . . . . . . . . . . . Distress Signals . | . . . . . . . . . . . . Times Spotted 189 | . 27 14 . 5 34 . 37 6 20 5 41 Peak Tracking Total 10 | . 3 3 . 2 6 . 4 4 3 4 10 Tactical Retreats 7 | . 2 1 . . 2 . . . . . 2 Traps | -11 -10 -10 -10 -9 -8 -8 -8 -7 -7 -6 -6 ------- Run | Jun Mat Min Exi Min Mat Gar Mat Fac Sto Fac Gar Traps Triggered 14 | . 3 . . . 1 . 4 . 1 1 4 Indirectly 1 | . . . . . . . . . . . 1 Trap Hack Attempts . | . . . . . . . . . . . . Triggered . | . . . . . . . . . . . . Disarmed . | . . . . . . . . . . . . Reprogrammed . | . . . . . . . . . . . . Reused . | . . . . . . . . . . . . Traps Extracted . | . . . . . . . . . . . . Installed . | . . . . . . . . . . . . Triggered . | . . . . . . . . . . . . Machines | -11 -10 -10 -10 -9 -8 -8 -8 -7 -7 -6 -6 ---------- Run | Jun Mat Min Exi Min Mat Gar Mat Fac Sto Fac Gar Machines Disabled 16 | . 1 1 . . . 7 . . 3 . 4 Max in Single Turn 2 | . 1 1 . . . 1 . . 1 . 2 Garrison Relay 8 | . . . . . . 6 . . . . 2 Phase Generator 2 | . . . . . . 1 . . . . 1 Machines Repaired . | . . . . . . . . . . . . Machines Sabotaged . | . . . . . . . . . . . . Overloaded Fab Kills . | . . . . . . . . . . . . Hacking | -11 -10 -10 -10 -9 -8 -8 -8 -7 -7 -6 -6 --------- Run | Jun Mat Min Exi Min Mat Gar Mat Fac Sto Fac Gar Machines Accessed 48 | . 7 1 3 1 3 5 8 4 11 3 2 Terminals 32 | . 6 . . 1 1 5 5 3 8 1 2 Fabricators 2 | . . . . . . . . 1 . 1 . Repair Stations 4 | . . . . . . . 2 . 2 . . Recycling Units 2 | . 1 . . . . . . . 1 . . Scanalyzers 2 | . . . . . 1 . 1 . . . . Garrison Access 2 | . . . . . 1 . . . . 1 . Total Hacks 130 | . 21 1 14 2 8 8 29 7 27 8 5 Successful 69 | . 7 1 14 1 6 1 16 . 14 7 2 Failed 61 | . 14 . . 1 2 7 13 7 13 1 3 Catastrophic 13 | . 1 . . . . 2 2 5 2 . 1 Database Lockouts . | . . . . . . . . . . . . Manual 36 | . 14 . 1 . 2 . 2 4 10 2 1 Terminals 79 | . 17 . . 2 3 8 14 6 20 4 5 Fabricators 3 | . . . . . . . . 1 . 2 . Repair Stations 10 | . . . . . . . 5 . 5 . . Recycling Units 6 | . 4 . . . . . . . 2 . . Scanalyzers 14 | . . . . . 4 . 10 . . . . Garrison Access 3 | . . . . . 1 . . . . 2 . Terminal Hacks 41 | . 4 1 14 1 1 1 6 . 9 2 2 Record 13 | . . . 13 . . . . . . . . Part Schematic 1 | . . . . . . . . . 1 . . Robot Analysis 2 | . 1 . . . . . 1 . . . . Prototype ID Bank 1 | . 1 . . . . . . . . . . Open Door 5 | . . 1 . . . . . . 4 . . Level Access Points 1 | . . . . 1 . . . . . . . Emergency Access Points 3 | . 1 . . . . . . . . 1 1 Terminal Index 2 | . . . . . . . 1 . 1 . . Alert Level 1 | . . . . . . . 1 . . . . Unreport Threat 4 | . 1 . . . . . 1 . 2 . . Locate Traps 2 | . . . . . . . 1 . 1 . . Hauler Manifests 1 | . . . . . 1 . . . . . . Zone Layout 2 | . . . . . . . 1 . . 1 . Garrison Registry 1 | . . . . . . 1 . . . . . Security Stations 1 | . . . . . . . . . . . 1 EX-Prototype ID Bank 1 | . . . 1 . . . . . . . . Fabricator Hacks 2 | . . . . . . . . . . 2 . Load Schematic 1 | . . . . . . . . . . 1 . Build 1 | . . . . . . . . . . 1 . Repair Station Hacks 5 | . . . . . . . 2 . 3 . . Scan Component 4 | . . . . . . . 2 . 2 . . Repair 1 | . . . . . . . . . 1 . . Recycling Unit Hacks 1 | . 1 . . . . . . . . . . Report Inventory 1 | . 1 . . . . . . . . . . Scanalyzer 11 | . . . . . 3 . 8 . . . . Insert Component 6 | . . . . . 3 . 3 . . . . Analyze 5 | . . . . . . . 5 . . . . Garrison Access Hacks 3 | . . . . . 1 . . . . 2 . Unlock Access 2 | . . . . . 1 . . . . 1 . Coupler Status 1 | . . . . . . . . . . 1 . Unauthorized Hacks 6 | . 2 . . . 1 . . . 2 1 . Terminals 6 | . 2 . . . 1 . . . 2 1 . Botnet 6 | . 2 . . . 1 . . . 2 1 . Fabricators . | . . . . . . . . . . . . Repair Stations . | . . . . . . . . . . . . Recycling Units . | . . . . . . . . . . . . Scanalyzers . | . . . . . . . . . . . . Garrison Access . | . . . . . . . . . . . . Data Cores Recovered . | . . . . . . . . . . . . Used . | . . . . . . . . . . . . Hacking Detections 40 | . 7 . . 1 2 5 8 4 8 3 2 Full Trace Events 3 | . . . . . . 1 . 1 . 1 . Feedback Events . | . . . . . . . . . . . . Feedback Blocked . | . . . . . . . . . . . . Robot Schematics Acquired . | . . . . . . . . . . . . Robots Built . | . . . . . . . . . . . . Authchips . | . . . . . . . . . . . . Time . | . . . . . . . . . . . . Total Robot Build Rating . | . . . . . . . . . . . . Part Schematics Acquired 4 | . . . . . . . 3 . 1 . . Parts Built 2 | . . . . . . . . . . 2 . Authchips . | . . . . . . . . . . . . Time 84 | . . . . . . . . . . 84 . Total Part Build Rating 8 | . . . . . . . . . . 8 . Parts Repaired 1 | . . . . . . . . . 1 . . Time 25 | . . . . . . . . . 25 . . Parts Recycled . | . . . . . . . . . . . . Recycled Matter . | . . . . . . . . . . . . Retrieved Matter . | . . . . . . . . . . . . Retrieved Components . | . . . . . . . . . . . . Parts Scanalyzed 3 | . . . . . . . 3 . . . . Part Schematics Acquired 3 | . . . . . . . 3 . . . . Parts Damaged . | . . . . . . . . . . . . Bothacking | -11 -10 -10 -10 -9 -8 -8 -8 -7 -7 -6 -6 ------------ Run | Jun Mat Min Exi Min Mat Gar Mat Fac Sto Fac Gar Used RIF Installer 2 | . . . . . . 1 . . . . 1 Coupler Efficiency 1 | . . . . . . . . . . . 1 Robots Hacked 9 | . . . . . . . . . 6 . 3 Non-combat . | . . . . . . . . . . . . Combat 9 | . . . . . . . . . 6 . 3 Robot Hacks Applied 9 | . . . . . . . . . 6 . 3 formatsys_high 9 | . . . . . . . . . 6 . 3 Relay Couplers Released 35 | . . . . . . 24 . . . . 11 Machine Destruction 32 | . . . . . . 24 . . . . 8 Programmers 3 | . . . . . . . . . . . 3 Attached 8 | . . . . . . . 1 . 4 . 3 Fabnet Peak Effective % . | . . . . . . . . . . . . Robots Rewired 5 | . . . . . . 5 . . . . . Allies Hacked . | . . . . . . . . . . . . Hacks Repelled . | . . . . . . . . . . . . Allies | -11 -10 -10 -10 -9 -8 -8 -8 -7 -7 -6 -6 -------- Run | Jun Mat Min Exi Min Mat Gar Mat Fac Sto Fac Gar Total Allies 17 | . . 3 . . . 5 . . 6 . 3 Largest Group 5 | . . 3 3 3 3 5 5 . 5 4 3 Highest-Rated Group 148 | . . 40 40 40 40 76 76 . 148 116 111 Highest-Rated Ally 85 | . . 16 16 16 16 31 31 . 32 32 85 Total Orders 20 | . . . . . . 4 1 . 10 4 1 STAY 7 | . . . . . . 2 . . 4 . 1 ROAM 1 | . . . . . . . . . 1 . . FOLLOW 4 | . . . . . . 1 . . 3 . . GUARD 1 | . . . . . . . . . 1 . . AID 1 | . . . . . . . 1 . . . . EXPLORE 4 | . . . . . . . . . 1 3 . RETURN 2 | . . . . . . 1 . . . 1 . Ally Attacks 186 | . . 19 . 23 20 . 86 . 27 10 1 Total Damage 3043 | . . 235 . 221 166 . 920 . 1096 405 . Kills 39 | . . 5 . 5 1 . 13 . 12 2 1 Allies Corrupted . | . . . . . . . . . . . . Allies Melted . | . . . . . . . . . . . . Intel | -11 -10 -10 -10 -9 -8 -8 -8 -7 -7 -6 -6 ------- Run | Jun Mat Min Exi Min Mat Gar Mat Fac Sto Fac Gar Robot Analysis Total 2 | . 1 . . . . . 1 . . . . Derelict Logs Recovered 2 | . . 1 . 1 . . . . . . . Drone Launches 6 | . . . . . . 1 . . 2 3 . Drone Recoveries 3 | . . . . . . 1 . . . 2 . Exploration | -11 -10 -10 -10 -9 -8 -8 -8 -7 -7 -6 -6 ------------- Run | Jun Mat Min Exi Min Mat Gar Mat Fac Sto Fac Gar Turns Passed 16618 | . 1375 2397 1049 1689 1413 1944 2533 515 979 817 1907 Spaces Moved 6870 | 1 668 758 218 445 565 960 1243 352 656 362 642 Core 1 | . . . . . . . . . . . 1 Treads 1316 | . 97 298 218 392 . . 258 . . . 53 Legs 2208 | 1 38 . . . 565 960 458 . . . 186 Wheels 3345 | . 533 460 . 53 . . 527 352 656 362 402 Hover . | . . . . . . . . . . . . Flight . | . . . . . . . . . . . . Fastest Speed 100 | 120 100 175 480 200 190 190 115 115 115 115 130 Average Speed 206 | 120 157 301 480 376 193 190 171 115 115 129 231 Slowest Speed 1500 | 120 240 480 480 480 330 190 490 115 145 130 1500 Overloaded Moves . | . . . . . . . . . . . . Propulsion Burnouts . | . . . . . . . . . . . . Robots Hopped . | . . . . . . . . . . . . Cave-ins Triggered . | . . . . . . . . . . . . Exploration Rate (%) 55 | 1 91 98 60 85 39 84 63 9 53 14 63 Regions Visited 11 Branch Regions 4 Pre-discovered Areas 3 | . . 1 1 1 . . . . . . . Known Exits Taken 4 | . . . . 1 1 . . 1 . 1 . Unknown Exits Taken 6 | 1 1 1 1 . . . 1 . 1 . . Scrap Searched 3 | . . 1 . 2 . . . . . . . Spaces Dug 43 | . . . . . . . 13 9 3 14 4 Terrain Destroyed 281 | . . . . . . 68 57 29 3 14 110 Melee 30 | . . . . . . . 8 1 3 14 4 Projectile 26 | . . . . . . . 17 9 . . . AOE 225 | . . . . . . 68 32 19 . . 106 Terrain Rammed . | . . . . . . . . . . . . Walls Destroyed . | . . . . . . . . . . . . Machines Disabled . | . . . . . . . . . . . . Actions | -11 -10 -10 -10 -9 -8 -8 -8 -7 -7 -6 -6 --------- Run | Jun Mat Min Exi Min Mat Gar Mat Fac Sto Fac Gar Total 8587 | . 876 829 226 459 716 1063 1524 413 845 675 961 Wait 818 | . 100 25 . 5 13 8 129 8 115 270 145 Move 6859 | . 667 757 217 444 565 958 1242 351 655 361 642 Hop . | . . . . . . . . . . . . Pick Up 139 | . 26 8 4 3 17 24 14 2 10 5 26 Fast Attach 19 | . . . . 1 1 . 7 2 3 1 4 Attach 73 | . 7 2 . 2 17 2 7 2 7 1 26 Detach 5 | . . 1 . . 2 . . . 1 . 1 Swap 93 | . 9 4 . 1 3 13 14 6 14 7 22 Drop 99 | . 2 8 5 2 5 27 25 3 6 4 12 Fire 368 | . 65 24 . . 91 5 74 38 14 12 45 Melee 106 | . . . . . . 26 12 1 18 14 35 Ram . | . . . . . . . . . . . . Kick 2 | . . . . . 2 . . . . . . Crush 1 | . . . . 1 . . . . . . . Escape Stasis 3 | . . . . . . . . . . . 3 Rewire 1 | . . . . . . . . . 1 . . Trap . | . . . . . . . . . . . . Miscellaneous 1 | . . . . . . . . . 1 . . Route ------- -11/Junkyard -10/Materials (discovered 5 exits: [*Mat x3] / *Min x2) -10/Mines (discovered 3 exits: [*Mat x2] / *Exi) -10/Exiles -9/Mines (discovered 2 exits: *Mat x2) -8/Materials (discovered 2 exits: *Fac / Gar) -8/Garrison (discovered 3 exits: *Mat x3) -8/Materials -7/Factory (discovered 3 exits: *Fac / *Sto / [*Low]) -7/Storage -6/Factory -6/Garrison (discovered 2 exits: [*Fac x2]) History --------- Turn | Location | Event 1 | -11/Junkyard | Discovered new exit (range 0) 1 | -11/Junkyard | Entered Materials 152 | -10/Materials | Discovered new exit (range 16) 281 | -10/Materials | Discovered new exit (range 5) 303 | -10/Materials | Lost 3 parts (1p1n1w) 308 | -10/Materials | Build established: Mutant 376 | -10/Materials | Lost 3 parts (1p1n1w) 503 | -10/Materials | Discovered new exit (range 9) 818 | -10/Materials | Discovered new exit (range 16) 1060 | -10/Materials | Discovered new exit (range 16) 1376 | -10/Materials | Entered Mines 1387 | -10/Mines | Core integrity fell below 50% 1633 | -10/Mines | Found the Drone Emporium 1644 | -10/Mines | Found Prototype Device 1873 | -10/Mines | Assisted by bots powering up and referring to "LRC-V3" 1913 | -10/Mines | Discovered new exit (range 6) 2086 | -10/Mines | Discovered new exit (range 16) 2198 | -10/Mines | Learned location of Storage (-7) 2328 | -10/Mines | Joined a pair of Derelicts in attacking an 0b10 outpost 3754 | -10/Mines | Deemed a non-threat by the Exiles lab entrance 3754 | -10/Mines | Discovered new exit (range 5) 3773 | -10/Mines | Entered Exiles 3773 | -10/Exiles | Accompanied by 3 allies 3913 | -10/Exiles | Met 8R-AWN 3994 | -10/Exiles | Met EX-HEX 4119 | -10/Exiles | Met EX-BIN 4191 | -10/Exiles | Aligned with FarCom system 4196 | -10/Exiles | Given EX-Vault access code 4311 | -10/Exiles | Opened EX-Vault 4360 | -10/Exiles | Found Longsword +1 4462 | -10/Exiles | Warned to stay clear of 0b10 Research branches 4596 | -10/Exiles | Met EX-DEC 4620 | -10/Exiles | Learned location of Zion (-7) 4764 | -10/Exiles | Discovered new exit (range 14) 4822 | -10/Exiles | Left Exiles lab with Longsword +1 4822 | -10/Exiles | Entered Mines 4822 | -9/Mines | Accompanied by 3 allies 4863 | -9/Mines | Found a damaged Exp. Sensor Array with a note attached 4867 | -9/Mines | Found Prototype Device 5264 | -9/Mines | A weapon hastily lodged in a ceiling crevice suddenly fell to the ground 6403 | -9/Mines | Discovered new exit (range 12) 6479 | -9/Mines | Identified exit to Materials 6511 | -9/Mines | Entered Materials 6511 | -8/Materials | Accompanied by 3 allies 6511 | -8/Materials | Evolved 4 slots: Propulsion x2, Utility x2 6556 | -8/Materials | Identified Exp. Sensor Array 6556 | -8/Materials | Identified Splice Drone Bay 7126 | -8/Materials | Lost 8 parts (3n3u2w) 7228 | -8/Materials | Garrison activated, responded to threat 7345 | -8/Materials | Build established: Scavenger-Mutant 7352 | -8/Materials | Garrison activated, responded to threat 7869 | -8/Materials | Discovered new exit (range 16) 7924 | -8/Materials | Identified exit to Garrison 7924 | -8/Materials | Entered Garrison 7924 | -8/Garrison | Discovered recently destroyed garrison 8240 | -8/Garrison | Garrison Relay disabled 8386 | -8/Garrison | Discovered new exit (range 10) 8515 | -8/Garrison | Garrison Relay disabled 8623 | -8/Garrison | Discovered new exit (range 24) 8623 | -8/Garrison | Discovered new exit (range 69) 8623 | -8/Garrison | Discovered new exit (range 91) 8766 | -8/Garrison | Garrison Relay disabled 8986 | -8/Garrison | Garrison Relay disabled 9022 | -8/Garrison | Build established: Mutant 9358 | -8/Garrison | Garrison Relay disabled 9468 | -8/Garrison | Build established: Commander-Mutant 9587 | -8/Garrison | Garrison Relay disabled 9731 | -8/Garrison | Installed Relay Interface Framework 9804 | -8/Garrison | Phase Generator disabled 9868 | -8/Garrison | Entered Materials 9868 | -8/Materials | Accompanied by 5 allies 10028 | -8/Materials | Build established: Bothacker-Mutant 11409 | -8/Materials | Core integrity fell below 50% 11669 | -8/Materials | Discovered new exit (range 15) 12023 | -8/Materials | Build established: Mutant 12401 | -8/Materials | Entered Factory 12401 | -7/Factory | Evolved 2 slots: Utility x2 12402 | -7/Factory | Identified exit to Storage 12538 | -7/Factory | Discovered new exit (range 5) 12656 | -7/Factory | Discovered new exit (range 16) 12897 | -7/Factory | Build established: Bothacker-Mutant 12916 | -7/Factory | Entered Storage 13312 | -7/Storage | Found Prototype Launcher 13507 | -7/Storage | Repaired Lgt. Angular Momentum Engine 13749 | -7/Storage | Discovered new exit (range 16) 13895 | -7/Storage | Entered Factory 13895 | -6/Factory | Accompanied by 5 allies 13895 | -6/Factory | Evolved 2 slots: Utility x2 14030 | -6/Factory | Fabricated System Restoration Module (x2) 14087 | -6/Factory | Identified Rocket Array 14705 | -6/Factory | Identified exit to Garrison 14712 | -6/Factory | Entered Garrison 14918 | -6/Garrison | Lost 5 parts (1n3u1w) 14922 | -6/Garrison | Triggered checkpoint 15054 | -6/Garrison | Garrison Relay disabled 15346 | -6/Garrison | Phase Generator disabled 15663 | -6/Garrison | Triggered checkpoint 15663 | -6/Garrison | Triggered checkpoint 15666 | -6/Garrison | Triggered checkpoint 15703 | -6/Garrison | Destroyed 9 combat bots 15726 | -6/Garrison | Core integrity fell below 50% 15766 | -6/Garrison | Lost 13 parts (1p4n6u2w) 15932 | -6/Garrison | Triggered checkpoint 16030 | -6/Garrison | Expanded RIF knowledge: Coupler Efficiency 16048 | -6/Garrison | Discovered new exit (range 13) 16112 | -6/Garrison | Triggered checkpoint 16192 | -6/Garrison | Garrison Relay disabled 16247 | -6/Garrison | Learned Factory security intel 16466 | -6/Garrison | Spotted B-75 Beast 16482 | -6/Garrison | Discovered new exit (range 7) 16534 | -6/Garrison | Assimilated Beast 5a with formatsys_high 16570 | -6/Garrison | Triggered checkpoint 16609 | -6/Garrison | Core integrity fell below 20% 16619 | -6/Garrison | Destroyed by Y-54 Guardian with Gatling Laser Last Messages --------------- 16595_ L-41 Fighter sneak attacks. 16596_ Jacked L-41 Fighter... >>formatsys_high Rerouting network defenses. Erasing system data. Installing primary routines, ETC: 6. 16597_ L-41 Fighter sneak attacks. 16600_ Fighter 5a destroyed. 16602_ L-41 Fighter sneak attacks. 16602_ Fighter 5b destroyed. 16602_ Acquired Magnetic Acceleration Cannon. 16605_ Arm. Huge Wheel destroyed. 16608_ Acquired Lyr. Medium Armor Plating. 16609_ Adv. Heat Sink destroyed. 16609_ Lgt. Treads destroyed. 16609_ Adv. Heat Sink destroyed. 16610_ L-41 Fighter destroyed. 16612_ Rocket Array destroyed. 16614_ Y-54 Guardian destroyed. 16618_ Acquired 17 matter. Map ----- +----------------------------------------------------+ | ????????# ######## ####|#???# ## #????? | | ????????####??????# #??# #???# ## #####%%#????? | | ??????????????????##"##??# #???# ## #???# ###### | | ???????????????????# #???# #???# ## #???# ## | | ???????????????????# #???# #???# ## #??## %## | | ???????????????????# ##### ##### ## #### | | ???????????????????# [! | | ???????????????????############# | | ???????????????????????????????######## | | ??????????????????????????????????????### # | | ??????????????????????????????????????# ^ | | ??????????????????????????????????????# ^ | | ???????????????????????????????????#### | | ???????????????????????????????????# | | ???????????????????????????????????# #### # | | ???????????????????????????????????# #??# ## | | ????????????????????????????## ##### ### | | ????????????????????? [ | | ????????????????????????????## ##### #### | | ???????????????????????????????????# #??## ## | | ???????????????????????????????????# #???? ## | | ???????????????????????######??????# #???? #? ### | | ???????????????????????# #??????# ##### #????? | | ??????????????# ###### ##Y###?# #?? | | ????????? / YY = #?# ##### #????? | | ???????????????# #######%@ ##### #?# #???? #????? | | ???????????????????????# %=#???? #?# #???????????? | | ???????????????????????##=[#???# #?# #???????????? | | ?????????????????????####=]##### ### ##### #????? | | ?????????????????????# ! ^ #????? | | ?????????????????????# #????? | | ?????????????????????#### ### #### ########????? | | ????????????????????????# #?# #??# #???????????? | | ????????????????????????#%#?# #??# #???????????? | | ????????????????????????#*###%= #### #???????????? | | ????????????????????????#=! ![ #???????????? | | ????????????????????????# ### ######???????????? | | ????????????????????????# #?# #????????????????? | | ????????????????????????# #?# #????????????????? | | ????????????????????????# #?# #????????????????? | | ????????????????????????# #? ????????????????? | | ????????????????????????# ## < #???????????????? | | ????????????????????????# ## #???????????????? | | ????????????????????????# ### ##???????????????? | | ????????????????????????# #?#####????????????????? | | ????????????????????????? ???????????????????????? | | ????????????????????????? ???????????????????????? | | ????????????????????????? ???????????????????????? | | ?????????????????????????T???????????????????????? | | ?????????????????????????#???????????????????????? | +----------------------------------------------------+ Best States ------------- Heat Dissipation 132 Energy Generation 18 Energy Capacity 290 Matter Stores 300 Matter Capacity 300 Sight Range 18 Terrain Scan Density 10 ECM Strength 2 Armor Coverage 300 Resistance: KI 20 Propulsion Shielding 33 Evasion (%) 55 Targeting Accuracy 5 Target Analysis 6 Core Analysis 6 Recoil Reduction 4 Offensive Hacking 10 Relay Coupler Types 2 Relay Coupler Value 50 Authchip Count 2 Item Schematics ----------------- System Restoration Module | -8/Materials | Scanalyzed Arm. Huge Wheel | -8/Materials | Scanalyzed Lyr. Light Armor Plating | -8/Materials | Scanalyzed Lgt. Angular Momentum Engine | -7/Storage | Hacked Robot Schematics ------------------ None Fabricated ------------ System Restoration Module | x2 | -6/Factory Alien Tech Used ----------------- None Achievements -------------- None Challenges ------------ None Game ------ Seed MyomerAlloySuite Manual? 0 Play Time 02:31:05 Cumulative 155.9 hours Start 2023.10.31 @ 10:31:39 End 2023.10.31 @ 13:11:37 Sessions 1 Manual Loads 0 Difficulty Rogue Special Mode None Game No. 110 Rogue 105 Adventurer 0 Explorer 5 Win Type - Total 2 Types 2/0/0/0/0/0/0/0/0 Lore% 58 Gallery% 67 Achievement% 48 Wizard Run 0 Options --------- ASCII 0 Keyboard 0 Movement Arrows Keybinds 1 Fullscreen 1 Font 18/TerminusBold Map View 76x50 Tactical HUD 1 Map Filters NONE Filters NONE Steam 1 RUN: f3b9ebbe-2950-4c5f-803d-b5fd5cc08281